[Event "*** Titled Tuesday Blitz"]
[Site "Chess.com"]
[Date "2020.12.29"]
[Round "4"]
[White "frenchpin"]
[Black "Chernobay_Artem"]
[Result "1/2-1/2"]
[WhiteElo "2465"]
[BlackElo "2638"]
[TimeControl "180+1"]
[EndTime "10:41:21 PST"]
[Termination "Game drawn by repetition"]

1. e4 {[%clk 0:03:00.9]} 1... c6 {[%clk 0:02:58.8]} 2. d4 {[%clk 0:03:00.3]}
2... d5 {[%clk 0:02:59]} 3. Nc3 {[%clk 0:03:01.2]} 3... dxe4 {[%clk 0:02:54.6]}
4. Nxe4 {[%clk 0:03:02.1]} 4... Nf6 {[%clk 0:02:54.2]} 5. Nxf6+ {[%clk
0:03:02.3]} 5... exf6 {[%clk 0:02:54.2]} 6. c3 {[%clk 0:03:02.3]} 6... Bd6
{[%clk 0:02:52.6]} 7. Bd3 {[%clk 0:03:02.7]} 7... O-O {[%clk 0:02:50]} 8. Qc2
{[%clk 0:03:03.2]} 8... h5 {[%clk 0:02:38.8]} 9. Be3 {[%clk 0:02:59.1]} 9... Re8
{[%clk 0:02:25.6]} 10. Ne2 {[%clk 0:02:46]} 10... h4 {[%clk 0:02:12.7]} 11. h3
{[%clk 0:02:35.5]} 11... Nd7 {[%clk 0:02:05.6]} 12. O-O {[%clk 0:02:34.1]} 12...
Nf8 {[%clk 0:01:48.8]} 13. Rae1 {[%clk 0:02:21]} 13... Be6 {[%clk 0:01:34.8]}
14. Bf4 {[%clk 0:02:16.9]} 14... Qc7 {[%clk 0:01:23.7]} 15. Bxd6 {[%clk
0:02:06.5]} 15... Qxd6 {[%clk 0:01:24.6]} 16. Nc1 {[%clk 0:01:57.4]} 16... Bd5
{[%clk 0:01:06.2]} 17. c4 {[%clk 0:01:54.2]} 17... Be6 {[%clk 0:01:05.9]} 18.
Nb3 {[%clk 0:01:40]} 18... a5 {[%clk 0:01:04.9]} 19. a4 {[%clk 0:01:37.9]} 19...
Nd7 {[%clk 0:00:53.9]} 20. Re4 {[%clk 0:01:32.5]} 20... f5 {[%clk 0:00:34.1]}
21. Rxh4 {[%clk 0:01:21.1]} 21... Qe7 {[%clk 0:00:32.9]} 22. Rf4 {[%clk
0:01:14.5]} 22... Qg5 {[%clk 0:00:32.4]} 23. Rf3 {[%clk 0:01:08.5]} 23... g6
{[%clk 0:00:29.2]} 24. Rg3 {[%clk 0:01:02.3]} 24... Qf6 {[%clk 0:00:26.1]} 25.
Rf3 {[%clk 0:00:55.6]} 25... b6 {[%clk 0:00:23.3]} 26. Rd1 {[%clk 0:00:52.7]}
26... Rad8 {[%clk 0:00:22.4]} 27. Bf1 {[%clk 0:00:48.3]} 27... Nf8 {[%clk
0:00:22.1]} 28. Rfd3 {[%clk 0:00:39.8]} 28... f4 {[%clk 0:00:15.3]} 29. Qc1
{[%clk 0:00:34]} 29... Nh7 {[%clk 0:00:11.4]} 30. d5 {[%clk 0:00:30.6]} 30...
cxd5 {[%clk 0:00:08.6]} 31. cxd5 {[%clk 0:00:31]} 31... Bd7 {[%clk 0:00:06.6]}
32. d6 {[%clk 0:00:18.9]} 32... Bxa4 {[%clk 0:00:03]} 33. Qc4 {[%clk 0:00:12.7]}
33... Bxb3 {[%clk 0:00:02.9]} 34. Qxb3 {[%clk 0:00:12.7]} 34... Ng5 {[%clk
0:00:02.6]} 35. d7 {[%clk 0:00:12.3]} 35... Rf8 {[%clk 0:00:03]} 36. Rd6 {[%clk
0:00:11.9]} 36... Qe5 {[%clk 0:00:03.5]} 37. Qxb6 {[%clk 0:00:09.3]} 37... f3
{[%clk 0:00:03.9]} 38. Qe3 {[%clk 0:00:08.1]} 38... Qxe3 {[%clk 0:00:02.7]} 39.
fxe3 {[%clk 0:00:09]} 39... fxg2 {[%clk 0:00:02.7]} 40. Bxg2 {[%clk 0:00:09.2]}
40... Kg7 {[%clk 0:00:03.1]} 41. R6d5 {[%clk 0:00:07.2]} 41... Ne6 {[%clk
0:00:03.2]} 42. Rxa5 {[%clk 0:00:07.4]} 42... Kf6 {[%clk 0:00:03.6]} 43. Ra6
{[%clk 0:00:07.5]} 43... Ke7 {[%clk 0:00:03.9]} 44. Rc6 {[%clk 0:00:06.5]} 44...
Rxd7 {[%clk 0:00:03.8]} 45. Rxd7+ {[%clk 0:00:06]} 45... Kxd7 {[%clk 0:00:04.7]}
46. Rb6 {[%clk 0:00:05.6]} 46... Rc8 {[%clk 0:00:04.4]} 47. Rb7+ {[%clk
0:00:05.6]} 47... Ke8 {[%clk 0:00:04.6]} 48. Bd5 {[%clk 0:00:04.7]} 48... Rc2
{[%clk 0:00:02.4]} 49. Bxe6 {[%clk 0:00:05]} 49... fxe6 {[%clk 0:00:02.5]} 50.
b4 {[%clk 0:00:05.1]} 50... Rb2 {[%clk 0:00:02.3]} 51. b5 {[%clk 0:00:05.1]}
51... Kd8 {[%clk 0:00:02.9]} 52. b6 {[%clk 0:00:05.1]} 52... Kc8 {[%clk
0:00:03.2]} 53. Rc7+ {[%clk 0:00:04.5]} 53... Kd8 {[%clk 0:00:03.6]} 54. Rc6
{[%clk 0:00:04.5]} 54... Kd7 {[%clk 0:00:03.6]} 55. Rc7+ {[%clk 0:00:04.7]}
55... Kd6 {[%clk 0:00:04.2]} 56. Rg7 {[%clk 0:00:04.8]} 56... Rxb6 {[%clk
0:00:03.8]} 57. Rxg6 {[%clk 0:00:05.3]} 57... Ke5 {[%clk 0:00:04.1]} 58. Rg4
{[%clk 0:00:04.8]} 58... Kf5 {[%clk 0:00:04.2]} 59. Kg2 {[%clk 0:00:04.6]} 59...
Rb3 {[%clk 0:00:03.9]} 60. Kf3 {[%clk 0:00:05]} 60... e5 {[%clk 0:00:03.2]} 61.
h4 {[%clk 0:00:05]} 61... Ra3 {[%clk 0:00:03.3]} 62. Rg5+ {[%clk 0:00:05.1]}
62... Kf6 {[%clk 0:00:02.7]} 63. Ke4 {[%clk 0:00:05]} 63... Ra4+ {[%clk
0:00:02.9]} 64. Kd5 {[%clk 0:00:04.7]} 64... Rxh4 {[%clk 0:00:03.8]} 65. Rxe5
{[%clk 0:00:04.2]} 65... Rh3 {[%clk 0:00:03.7]} 66. Re6+ {[%clk 0:00:03.8]}
66... Kf7 {[%clk 0:00:03.8]} 67. Re4 {[%clk 0:00:03.8]} 67... Rh5+ {[%clk
0:00:03.5]} 68. Re5 {[%clk 0:00:03.8]} 68... Rh1 {[%clk 0:00:04.4]} 69. Rf5+
{[%clk 0:00:03.7]} 69... Ke7 {[%clk 0:00:03.4]} 70. Rf3 {[%clk 0:00:04.6]} 70...
Rh5+ {[%clk 0:00:01.8]} 71. Ke4 {[%clk 0:00:04.7]} 71... Ke6 {[%clk 0:00:01.9]}
72. Rf4 {[%clk 0:00:04.7]} 72... Ra5 {[%clk 0:00:02.5]} 73. Kf3 {[%clk
0:00:04.9]} 73... Rb5 {[%clk 0:00:03]} 74. Rh4 {[%clk 0:00:05.2]} 74... Ra5
{[%clk 0:00:03.5]} 75. Rh6+ {[%clk 0:00:05.5]} 75... Ke7 {[%clk 0:00:02.4]} 76.
e4 {[%clk 0:00:05.8]} 76... Rb5 {[%clk 0:00:02.4]} 77. Kf4 {[%clk 0:00:06.3]}
77... Ra5 {[%clk 0:00:02.9]} 78. Rh7+ {[%clk 0:00:07]} 78... Ke6 {[%clk
0:00:03]} 79. Rh6+ {[%clk 0:00:07.9]} 79... Ke7 {[%clk 0:00:03.4]} 80. e5 {[%clk
0:00:08]} 80... Ra1 {[%clk 0:00:01.2]} 81. Rh7+ {[%clk 0:00:07.8]} 81... Ke6
{[%clk 0:00:01.6]} 82. Rh6+ {[%clk 0:00:08.4]} 82... Ke7 {[%clk 0:00:02.3]} 83.
Ke4 {[%clk 0:00:08.8]} 83... Re1+ {[%clk 0:00:01.4]} 84. Kd5 {[%clk 0:00:09.2]}
84... Rd1+ {[%clk 0:00:02.1]} 85. Ke4 {[%clk 0:00:09.6]} 85... Re1+ {[%clk
0:00:02.7]} 86. Kd4 {[%clk 0:00:10]} 86... Rf1 {[%clk 0:00:03.4]} 87. Kc3 {[%clk
0:00:10.9]} 87... Re1 {[%clk 0:00:03.3]} 88. Kd4 {[%clk 0:00:10.6]} 88... Rd1+
{[%clk 0:00:03.7]} 89. Ke4 {[%clk 0:00:10]} 89... Re1+ {[%clk 0:00:04.2]}
1/2-1/2

[Event "*** Titled Tuesday Blitz"]
[Site "Chess.com"]
[Date "2020.12.29"]
[Round "5"]
[White "Alexander_Zubov"]
[Black "ODreamchess"]
[Result "1-0"]
[WhiteElo "2939"]
[BlackElo "2689"]
[TimeControl "180+1"]
[EndTime "10:48:35 PST"]
[Termination "Alexander_Zubov won by resignation"]

1. d4 {[%clk 0:03:00.9]} 1... Nf6 {[%clk 0:02:59.9]} 2. c4 {[%clk 0:03:00.2]}
2... g6 {[%clk 0:03:00.3]} 3. Nf3 {[%clk 0:02:59.8]} 3... Bg7 {[%clk 0:03:00.7]}
4. Nc3 {[%clk 0:02:58.2]} 4... O-O {[%clk 0:03:01.6]} 5. e4 {[%clk 0:02:57.8]}
5... d6 {[%clk 0:03:01.3]} 6. Be2 {[%clk 0:02:58.1]} 6... Bg4 {[%clk 0:03:00.7]}
7. Be3 {[%clk 0:02:56.8]} 7... Nfd7 {[%clk 0:02:59.8]} 8. Ng1 {[%clk 0:02:47.6]}
8... Bxe2 {[%clk 0:02:59.1]} 9. Ngxe2 {[%clk 0:02:47.6]} 9... c5 {[%clk
0:03:00]} 10. d5 {[%clk 0:02:47.5]} 10... Na6 {[%clk 0:02:59.9]} 11. O-O {[%clk
0:02:44.6]} 11... Nc7 {[%clk 0:03:00.8]} 12. a4 {[%clk 0:02:38.8]} 12... a6
{[%clk 0:03:01.1]} 13. a5 {[%clk 0:02:37.4]} 13... Rb8 {[%clk 0:03:01.4]} 14. b3
{[%clk 0:02:32]} 1-0

[Event "*** Titled Tuesday Blitz"]
[Site "Chess.com"]
[Date "2020.12.29"]
[Round "5"]
[White "Tagliata"]
[Black "zverr1"]
[Result "1-0"]
[WhiteElo "2305"]
[BlackElo "2442"]
[TimeControl "180+1"]
[EndTime "10:49:53 PST"]
[Termination "Tagliata won by resignation"]

1. e4 {[%clk 0:03:00.9]} 1... c5 {[%clk 0:02:53.5]} 2. Nc3 {[%clk 0:02:59.6]}
2... Nc6 {[%clk 0:02:49.9]} 3. g3 {[%clk 0:02:59.7]} 3... g6 {[%clk 0:02:48.9]}
4. Bg2 {[%clk 0:02:59.9]} 4... Bg7 {[%clk 0:02:45.1]} 5. d3 {[%clk 0:03:00.5]}
5... d6 {[%clk 0:02:18.8]} 6. f4 {[%clk 0:02:59.4]} 6... e6 {[%clk 0:02:15.9]}
7. Nf3 {[%clk 0:02:59.8]} 7... Nge7 {[%clk 0:02:10]} 8. O-O {[%clk 0:03:00.3]}
8... O-O {[%clk 0:02:10.9]} 9. Be3 {[%clk 0:02:59.6]} 9... Nd4 {[%clk
0:02:08.6]} 10. Bf2 {[%clk 0:02:59.5]} 10... Nec6 {[%clk 0:02:08.3]} 11. Nxd4
{[%clk 0:02:58]} 11... Nxd4 {[%clk 0:02:09.2]} 12. e5 {[%clk 0:02:57.7]} 12...
dxe5 {[%clk 0:02:08.6]} 13. fxe5 {[%clk 0:02:57]} 13... Bxe5 {[%clk 0:02:09.5]}
14. Ne4 {[%clk 0:02:56.8]} 14... Nc6 {[%clk 0:01:59.6]} 15. Bxc5 {[%clk
0:02:53.2]} 15... Bxb2 {[%clk 0:01:56.8]} 16. Bxf8 {[%clk 0:02:48.9]} 16... Qd4+
{[%clk 0:01:56.7]} 17. Kh1 {[%clk 0:02:47.2]} 17... Bxa1 {[%clk 0:01:57.6]} 18.
Bc5 {[%clk 0:02:45.2]} 18... Qb2 {[%clk 0:01:55]} 19. Qxa1 {[%clk 0:02:43.6]}
19... Qxa1 {[%clk 0:01:55.1]} 20. Rxa1 {[%clk 0:02:42.4]} 1-0

[Event "*** Titled Tuesday Blitz"]
[Site "Chess.com"]
[Date "2020.12.29"]
[Round "5"]
[White "Kretov_Evgenij"]
[Black "scabies1"]
[Result "1-0"]
[WhiteElo "2517"]
[BlackElo "2326"]
[TimeControl "180+1"]
[EndTime "10:49:57 PST"]
[Termination "Kretov_Evgenij won by resignation"]

1. d4 {[%clk 0:03:00.9]} 1... Nf6 {[%clk 0:02:56]} 2. c4 {[%clk 0:03:01.3]} 2...
e6 {[%clk 0:02:55.6]} 3. Nc3 {[%clk 0:03:01.6]} 3... Bb4 {[%clk 0:02:51.5]} 4.
Bg5 {[%clk 0:03:02]} 4... c5 {[%clk 0:02:49.5]} 5. d5 {[%clk 0:03:01.9]} 5... h6
{[%clk 0:02:48.4]} 6. Bh4 {[%clk 0:03:01.8]} 6... exd5 {[%clk 0:02:28.8]} 7.
cxd5 {[%clk 0:03:01.2]} 7... d6 {[%clk 0:02:14.4]} 8. e3 {[%clk 0:03:00.6]} 8...
g5 {[%clk 0:02:14]} 9. Bg3 {[%clk 0:03:00.2]} 9... Qa5 {[%clk 0:02:06.5]} 10.
Qc2 {[%clk 0:02:54.8]} 10... Nxd5 {[%clk 0:02:02.6]} 11. Rc1 {[%clk 0:02:52.7]}
11... O-O {[%clk 0:01:51.7]} 12. Bc4 {[%clk 0:02:47.4]} 12... Nb6 {[%clk
0:01:38.6]} 13. Qg6+ {[%clk 0:02:46.2]} 13... Kh8 {[%clk 0:01:35.2]} 14. Qxh6+
{[%clk 0:02:46.1]} 14... Kg8 {[%clk 0:01:35.3]} 15. Qxg5+ {[%clk 0:02:46.2]}
15... Kh8 {[%clk 0:01:34]} 16. Qf6+ {[%clk 0:02:45.7]} 16... Kh7 {[%clk
0:01:34.5]} 17. Bd3+ {[%clk 0:02:44.7]} 1-0

[Event "*** Titled Tuesday Blitz"]
[Site "Chess.com"]
[Date "2020.12.29"]
[Round "5"]
[White "SanchezKelvin"]
[Black "Xeslu"]
[Result "0-1"]
[WhiteElo "2441"]
[BlackElo "2310"]
[TimeControl "180+1"]
[EndTime "10:49:59 PST"]
[Termination "Xeslu won by resignation"]

1. d4 {[%clk 0:03:00.9]} 1... Nf6 {[%clk 0:02:58.7]} 2. c4 {[%clk 0:03:00.7]}
2... c5 {[%clk 0:02:54.5]} 3. d5 {[%clk 0:02:59.5]} 3... b5 {[%clk 0:02:54]} 4.
cxb5 {[%clk 0:02:58.5]} 4... a6 {[%clk 0:02:53.9]} 5. bxa6 {[%clk 0:02:58.6]}
5... g6 {[%clk 0:02:52.9]} 6. g3 {[%clk 0:02:58.7]} 6... d6 {[%clk 0:02:52.2]}
7. Bg2 {[%clk 0:02:59.1]} 7... Bg7 {[%clk 0:02:52]} 8. Nc3 {[%clk 0:02:59.4]}
8... Bxa6 {[%clk 0:02:51.2]} 9. Nf3 {[%clk 0:02:59.8]} 9... O-O {[%clk
0:02:50.9]} 10. O-O {[%clk 0:02:59.8]} 10... Nbd7 {[%clk 0:02:51.5]} 11. Re1
{[%clk 0:02:59.6]} 11... Ng4 {[%clk 0:02:50.9]} 12. h3 {[%clk 0:02:54.9]} 12...
Nge5 {[%clk 0:02:51.4]} 13. Nxe5 {[%clk 0:02:54.7]} 13... Nxe5 {[%clk
0:02:52.3]} 14. e4 {[%clk 0:02:40.9]} 14... Nd3 {[%clk 0:02:45.6]} 15. Re3
{[%clk 0:02:36.8]} 15... Nxc1 {[%clk 0:02:45.6]} 16. Rxc1 {[%clk 0:02:35.5]}
16... Rb8 {[%clk 0:02:45.4]} 17. b3 {[%clk 0:02:29.5]} 17... Bd4 {[%clk
0:02:41.8]} 18. Re1 {[%clk 0:02:28.5]} 18... Qa5 {[%clk 0:02:42]} 19. Na4 {[%clk
0:02:13.2]} 19... Bb5 {[%clk 0:02:35.2]} 20. e5 {[%clk 0:02:07.6]} 20... Bxa4
{[%clk 0:02:34.6]} 21. bxa4 {[%clk 0:02:05.3]} 21... Rb2 {[%clk 0:02:34.1]} 22.
Rc2 {[%clk 0:02:02.2]} 22... Rxc2 {[%clk 0:02:33.6]} 23. Qxc2 {[%clk 0:02:02]}
23... Qxe1+ {[%clk 0:02:33.6]} 0-1

[Event "*** Titled Tuesday Blitz"]
[Site "Chess.com"]
[Date "2020.12.29"]
[Round "5"]
[White "kirillshevchenko"]
[Black "TregubovP"]
[Result "1-0"]
[WhiteElo "2876"]
[BlackElo "2590"]
[TimeControl "180+1"]
[EndTime "10:50:27 PST"]
[Termination "kirillshevchenko won by resignation"]

1. e4 {[%clk 0:03:00.9]} 1... e6 {[%clk 0:02:57.8]} 2. c4 {[%clk 0:03:00.3]}
2... d5 {[%clk 0:02:57.1]} 3. cxd5 {[%clk 0:03:00.6]} 3... exd5 {[%clk
0:02:57.3]} 4. Qb3 {[%clk 0:03:01.2]} 4... dxe4 {[%clk 0:02:36.7]} 5. Bc4 {[%clk
0:03:00.6]} 5... Qd7 {[%clk 0:02:36.9]} 6. d3 {[%clk 0:02:55.7]} 6... Nc6 {[%clk
0:02:35.8]} 7. dxe4 {[%clk 0:02:37.7]} 7... Na5 {[%clk 0:02:35.4]} 8. Qc2 {[%clk
0:02:31.5]} 8... Nxc4 {[%clk 0:02:33.8]} 9. Qxc4 {[%clk 0:02:31.5]} 9... Nf6
{[%clk 0:02:29.2]} 10. Nc3 {[%clk 0:02:26.2]} 10... Qe6 {[%clk 0:02:22.2]} 11.
Qe2 {[%clk 0:02:20.8]} 11... Bb4 {[%clk 0:02:21]} 12. Qb5+ {[%clk 0:02:18.7]}
12... Bd7 {[%clk 0:02:17.4]} 13. Qxb4 {[%clk 0:02:18.7]} 13... O-O-O {[%clk
0:02:16.6]} 14. Nge2 {[%clk 0:02:05.8]} 14... Bc6 {[%clk 0:02:04.8]} 15. f3
{[%clk 0:01:58.5]} 1-0

[Event "*** Titled Tuesday Blitz"]
[Site "Chess.com"]
[Date "2020.12.29"]
[Round "5"]
[White "glebus008"]
[Black "ClydeHillKid"]
[Result "0-1"]
[WhiteElo "2229"]
[BlackElo "2382"]
[TimeControl "180+1"]
[EndTime "10:50:42 PST"]
[Termination "ClydeHillKid won by resignation"]

1. e4 {[%clk 0:03:00.9]} 1... e6 {[%clk 0:02:59.2]} 2. d4 {[%clk 0:02:58.5]}
2... d5 {[%clk 0:02:57.1]} 3. e5 {[%clk 0:02:55]} 3... c5 {[%clk 0:02:56.9]} 4.
c3 {[%clk 0:02:54.8]} 4... Nc6 {[%clk 0:02:56.2]} 5. Nf3 {[%clk 0:02:54.5]} 5...
Qb6 {[%clk 0:02:56.1]} 6. a3 {[%clk 0:02:53.3]} 6... c4 {[%clk 0:02:53.5]} 7.
Nbd2 {[%clk 0:02:47.6]} 7... f6 {[%clk 0:02:52.8]} 8. Rb1 {[%clk 0:02:29.9]}
8... fxe5 {[%clk 0:02:50.4]} 9. Nxe5 {[%clk 0:02:29.3]} 9... Nxe5 {[%clk
0:02:47.5]} 10. dxe5 {[%clk 0:02:30.2]} 10... Bc5 {[%clk 0:02:46.1]} 11. Qh5+
{[%clk 0:02:15]} 11... g6 {[%clk 0:02:45]} 12. Qh4 {[%clk 0:02:15.5]} 12... Ne7
{[%clk 0:02:41.7]} 13. g4 {[%clk 0:02:11.2]} 13... O-O {[%clk 0:02:38.4]} 14. f3
{[%clk 0:02:07]} 14... Nc6 {[%clk 0:02:18.4]} 15. b4 {[%clk 0:01:52.4]} 15...
cxb3 {[%clk 0:02:13.6]} 16. Rxb3 {[%clk 0:01:50.7]} 16... Qc7 {[%clk 0:02:11.7]}
17. f4 {[%clk 0:01:39.6]} 17... Rxf4 {[%clk 0:02:09.9]} 18. Be2 {[%clk
0:01:34.4]} 18... Bf2+ {[%clk 0:02:08.7]} 0-1

[Event "*** Titled Tuesday Blitz"]
[Site "Chess.com"]
[Date "2020.12.29"]
[Round "5"]
[White "A-S-00"]
[Black "ZatonskihAnna"]
[Result "1/2-1/2"]
[WhiteElo "2282"]
[BlackElo "2477"]
[TimeControl "180+1"]
[EndTime "10:51:00 PST"]
[Termination "Game drawn by repetition"]

1. d4 {[%clk 0:03:00.2]} 1... d5 {[%clk 0:02:59.2]} 2. Nf3 {[%clk 0:02:58.5]}
2... Nf6 {[%clk 0:02:58.7]} 3. c4 {[%clk 0:02:59.1]} 3... e6 {[%clk 0:02:58.6]}
4. g3 {[%clk 0:02:59]} 4... dxc4 {[%clk 0:02:59]} 5. Bg2 {[%clk 0:02:58.7]} 5...
c5 {[%clk 0:02:59.2]} 6. O-O {[%clk 0:02:52.5]} 6... Nc6 {[%clk 0:02:59]} 7. Ne5
{[%clk 0:02:49]} 7... Bd7 {[%clk 0:02:41.8]} 8. Na3 {[%clk 0:02:47.6]} 8... cxd4
{[%clk 0:02:30.9]} 9. Naxc4 {[%clk 0:02:47]} 9... Be7 {[%clk 0:02:24.9]} 10. b3
{[%clk 0:02:28.6]} 10... O-O {[%clk 0:02:24]} 11. Bb2 {[%clk 0:02:28.5]} 11...
Bc5 {[%clk 0:02:05.9]} 12. Nd3 {[%clk 0:02:02.8]} 12... Be7 {[%clk 0:01:50.6]}
13. Nde5 {[%clk 0:01:56.8]} 13... Bc5 {[%clk 0:01:42.1]} 14. Nd3 {[%clk
0:01:54.3]} 14... Be7 {[%clk 0:01:17.4]} 15. Nde5 {[%clk 0:01:52.3]} 1/2-1/2

[Event "*** Titled Tuesday Blitz"]
[Site "Chess.com"]
[Date "2020.12.29"]
[Round "5"]
[White "penguingm1"]
[Black "Alonmindlin"]
[Result "1-0"]
[WhiteElo "2941"]
[BlackElo "2705"]
[TimeControl "180+1"]
[EndTime "10:51:12 PST"]
[Termination "penguingm1 won by resignation"]

1. d4 {[%clk 0:03:00.9]} 1... Nf6 {[%clk 0:02:52.5]} 2. c4 {[%clk 0:02:58.5]}
2... e6 {[%clk 0:02:52.1]} 3. Nc3 {[%clk 0:02:58.3]} 3... Bb4 {[%clk 0:02:52.6]}
4. Qc2 {[%clk 0:02:58.2]} 4... Nc6 {[%clk 0:02:52.7]} 5. Nf3 {[%clk 0:02:58]}
5... d6 {[%clk 0:02:52.4]} 6. Bd2 {[%clk 0:02:55.7]} 6... Qe7 {[%clk 0:02:51.3]}
7. a3 {[%clk 0:02:51.3]} 7... Bxc3 {[%clk 0:02:51.2]} 8. Bxc3 {[%clk 0:02:51.2]}
8... a5 {[%clk 0:02:49.7]} 9. e3 {[%clk 0:02:49.5]} 9... O-O {[%clk 0:02:47.5]}
10. Bd3 {[%clk 0:02:49.1]} 10... e5 {[%clk 0:02:46.7]} 11. d5 {[%clk 0:02:48.6]}
11... Nb8 {[%clk 0:02:45.7]} 12. O-O {[%clk 0:02:48.1]} 12... b6 {[%clk
0:02:32.6]} 13. Rae1 {[%clk 0:02:43.5]} 13... Na6 {[%clk 0:02:27.1]} 14. b4
{[%clk 0:02:23.7]} 14... axb4 {[%clk 0:02:04.7]} 15. axb4 {[%clk 0:02:23.8]}
15... Bg4 {[%clk 0:01:47.7]} 16. Nd2 {[%clk 0:02:20.6]} 16... Nb8 {[%clk
0:01:47.5]} 17. f4 {[%clk 0:02:07.7]} 17... Nbd7 {[%clk 0:01:26.1]} 18. h3
{[%clk 0:02:07.6]} 18... Bh5 {[%clk 0:01:26.4]} 19. g4 {[%clk 0:02:06]} 19...
Bxg4 {[%clk 0:01:26.7]} 20. hxg4 {[%clk 0:02:06.9]} 20... Nxg4 {[%clk
0:01:27.2]} 21. Bxh7+ {[%clk 0:02:06.6]} 21... Kh8 {[%clk 0:01:27.3]} 22. Bf5
{[%clk 0:02:07.1]} 22... Qh4 {[%clk 0:01:27.2]} 23. Nf3 {[%clk 0:02:05.6]} 23...
Qh5 {[%clk 0:01:21.7]} 24. Bxd7 {[%clk 0:02:03.4]} 1-0

[Event "*** Titled Tuesday Blitz"]
[Site "Chess.com"]
[Date "2020.12.29"]
[Round "5"]
[White "sokidze"]
[Black "Nafania1"]
[Result "0-1"]
[WhiteElo "2536"]
[BlackElo "2399"]
[TimeControl "180+1"]
[EndTime "10:51:13 PST"]
[Termination "Nafania1 won by resignation"]

1. d4 {[%clk 0:03:00.9]} 1... Nf6 {[%clk 0:02:59.7]} 2. g3 {[%clk 0:03:00.7]}
2... d5 {[%clk 0:02:56.3]} 3. Nf3 {[%clk 0:03:00.5]} 3... e6 {[%clk 0:02:55.2]}
4. Bg2 {[%clk 0:03:00.2]} 4... Be7 {[%clk 0:02:55.5]} 5. c4 {[%clk 0:03:00.4]}
5... O-O {[%clk 0:02:55]} 6. Qc2 {[%clk 0:03:00.5]} 6... c5 {[%clk 0:02:54.7]}
7. O-O {[%clk 0:02:59.2]} 7... cxd4 {[%clk 0:02:50.5]} 8. Nxd4 {[%clk
0:02:42.9]} 8... e5 {[%clk 0:02:47.6]} 9. Nb3 {[%clk 0:02:16]} 9... d4 {[%clk
0:02:28.1]} 10. Rd1 {[%clk 0:02:11.6]} 10... Nc6 {[%clk 0:02:25.7]} 11. Nc3
{[%clk 0:01:50.1]} 11... Nb4 {[%clk 0:02:18]} 12. Qb1 {[%clk 0:01:08]} 12...
dxc3 {[%clk 0:02:17.6]} 13. Rxd8 {[%clk 0:01:04]} 13... c2 {[%clk 0:02:06.5]}
14. Rxf8+ {[%clk 0:00:51.8]} 14... Bxf8 {[%clk 0:02:04.1]} 0-1

[Event "*** Titled Tuesday Blitz"]
[Site "Chess.com"]
[Date "2020.12.29"]
[Round "5"]
[White "rasmussvane"]
[Black "Heineccius"]
[Result "1-0"]
[WhiteElo "2877"]
[BlackElo "2581"]
[TimeControl "180+1"]
[EndTime "10:51:24 PST"]
[Termination "rasmussvane won by resignation"]

1. Nf3 {[%clk 0:03:00.9]} 1... Nf6 {[%clk 0:02:59.4]} 2. g3 {[%clk 0:03:01.3]}
2... e6 {[%clk 0:02:57.5]} 3. Bg2 {[%clk 0:03:01.6]} 3... d5 {[%clk 0:02:57.7]}
4. O-O {[%clk 0:03:02.5]} 4... Be7 {[%clk 0:02:57.6]} 5. c4 {[%clk 0:03:02.9]}
5... O-O {[%clk 0:02:57.6]} 6. b3 {[%clk 0:03:03.3]} 6... d4 {[%clk 0:02:57.6]}
7. e3 {[%clk 0:03:03]} 7... Nc6 {[%clk 0:02:57.6]} 8. exd4 {[%clk 0:03:03.9]}
8... Nxd4 {[%clk 0:02:56.4]} 9. Bb2 {[%clk 0:03:02]} 9... Bc5 {[%clk 0:02:56.2]}
10. Ne5 {[%clk 0:02:54.5]} 10... c6 {[%clk 0:02:34.5]} 11. Nc3 {[%clk
0:02:53.8]} 11... Nf5 {[%clk 0:02:28.7]} 12. Nf3 {[%clk 0:02:48.8]} 12... Qe7
{[%clk 0:01:48]} 13. Ne2 {[%clk 0:02:45.3]} 13... Rd8 {[%clk 0:01:44.9]} 14. d4
{[%clk 0:02:16.6]} 14... Ba3 {[%clk 0:01:44.1]} 15. Bxa3 {[%clk 0:02:12.9]}
15... Qxa3 {[%clk 0:01:45]} 16. Qc2 {[%clk 0:02:13.4]} 16... Bd7 {[%clk
0:01:37.9]} 17. Rad1 {[%clk 0:02:09]} 17... a5 {[%clk 0:01:31.4]} 18. Rb1 {[%clk
0:01:56]} 18... Be8 {[%clk 0:01:30.3]} 19. Rfd1 {[%clk 0:01:55]} 19... a4 {[%clk
0:01:27.8]} 20. b4 {[%clk 0:01:54.8]} 1-0

[Event "*** Titled Tuesday Blitz"]
[Site "Chess.com"]
[Date "2020.12.29"]
[Round "5"]
[White "Pertinhez76"]
[Black "Region_07"]
[Result "0-1"]
[WhiteElo "2120"]
[BlackElo "2476"]
[TimeControl "180+1"]
[EndTime "10:51:26 PST"]
[Termination "Region_07 won by resignation"]

1. d4 {[%clk 0:03:00.9]} 1... d5 {[%clk 0:02:55.1]} 2. Nf3 {[%clk 0:02:59.1]}
2... Nc6 {[%clk 0:02:54.8]} 3. Bf4 {[%clk 0:02:58.1]} 3... Bg4 {[%clk 0:02:55]}
4. e3 {[%clk 0:02:54.1]} 4... e6 {[%clk 0:02:55.3]} 5. a3 {[%clk 0:02:50.7]}
5... Bd6 {[%clk 0:02:55.2]} 6. Bg3 {[%clk 0:02:49.6]} 6... Nf6 {[%clk
0:02:54.4]} 7. Bd3 {[%clk 0:02:48.5]} 7... O-O {[%clk 0:02:53.2]} 8. Nbd2 {[%clk
0:02:48.9]} 8... Re8 {[%clk 0:02:48.6]} 9. h3 {[%clk 0:02:49]} 9... Bh5 {[%clk
0:02:47.5]} 10. Bh4 {[%clk 0:02:44.1]} 10... e5 {[%clk 0:02:43.6]} 11. g4 {[%clk
0:02:42.9]} 11... Bg6 {[%clk 0:02:42.5]} 12. Bxg6 {[%clk 0:02:41.2]} 12... hxg6
{[%clk 0:02:43.4]} 13. dxe5 {[%clk 0:02:38.6]} 13... Nxe5 {[%clk 0:02:44.3]} 14.
Nxe5 {[%clk 0:02:38.3]} 14... Bxe5 {[%clk 0:02:42.7]} 15. c3 {[%clk 0:02:38.1]}
15... d4 {[%clk 0:02:24]} 16. cxd4 {[%clk 0:02:29.1]} 16... Bxd4 {[%clk
0:02:23.5]} 17. Nc4 {[%clk 0:02:21.8]} 17... Qd5 {[%clk 0:02:21.4]} 18. Bxf6
{[%clk 0:01:57.3]} 18... Qxh1+ {[%clk 0:02:19.5]} 19. Ke2 {[%clk 0:01:56.6]}
19... Qxd1+ {[%clk 0:02:17.6]} 20. Rxd1 {[%clk 0:01:53.5]} 20... Bxf6 {[%clk
0:02:17.2]} 21. Rd7 {[%clk 0:01:42.7]} 21... Rad8 {[%clk 0:02:12.1]} 22. Rxc7
{[%clk 0:01:41.1]} 22... Rc8 {[%clk 0:02:11.5]} 23. Rxc8 {[%clk 0:01:36.4]}
23... Rxc8 {[%clk 0:02:12.4]} 24. Nd6 {[%clk 0:01:36.5]} 24... Rc2+ {[%clk
0:02:10.7]} 25. Kd3 {[%clk 0:01:35]} 25... Rxb2 {[%clk 0:02:11.6]} 26. f4 {[%clk
0:01:34.6]} 26... Rb3+ {[%clk 0:02:05.6]} 27. Ke4 {[%clk 0:01:34.5]} 27... Rxa3
{[%clk 0:02:00]} 28. Nxb7 {[%clk 0:01:34.5]} 28... a5 {[%clk 0:01:59.2]} 29. g5
{[%clk 0:01:33.6]} 29... Be7 {[%clk 0:01:54.8]} 0-1